[Event "Titled Tuesday Blitz September 27 Late 2022"]
[White "Gokerkan, Cem Kaan"]
[Black "Bortnyk, Mykola"]
[WhiteFideId "6336760"]
[BlackFideId "14120836"]
[WhiteElo "2364"]
[BlackElo "2582"]
[Result "0-1"]
[Round "04"]
[TimeControl "180+1"]
[Date "2022.09.27"]
[WhiteClock "0:00:02"]
[BlackClock "0:00:44"]

1. e4 {[%clk 0:02:59]}  e5 {[%clk 0:02:59]} 2. Nf3 {[%clk 0:02:57]}  d6 {[%clk 0:03:00]} 3. d4 {[%clk 0:02:57]}  exd4 {[%clk 0:03:01]} 4. Nxd4 {[%clk 0:02:58]}  Nf6 {[%clk 0:03:01]} 5. Nc3 {[%clk 0:02:58]}  Be7 {[%clk 0:03:02]} 6. Bf4 {[%clk 0:02:59]}  O-O {[%clk 0:03:02]} 7. Qd2 {[%clk 0:02:59]}  d5 {[%clk 0:03:03]} 8. O-O-O {[%clk 0:02:21]}  Bb4 {[%clk 0:03:01]} 9. f3 {[%clk 0:02:21]}  dxe4 {[%clk 0:02:56]} 10. Ndb5 {[%clk 0:02:13]}  Qxd2+ {[%clk 0:02:54]} 11. Bxd2 {[%clk 0:02:09]}  Na6 {[%clk 0:02:43]} 12. Nxe4 {[%clk 0:02:06]}  Nxe4 {[%clk 0:02:42]} 13. fxe4 {[%clk 0:02:06]}  Bg4 {[%clk 0:02:36]} 14. Bxb4 {[%clk 0:02:03]}  Nxb4 {[%clk 0:02:37]} 15. Rd4 {[%clk 0:01:57]}  c5 {[%clk 0:02:34]} 16. Rc4 {[%clk 0:01:48]}  Rad8 {[%clk 0:02:34]} 17. Nc3 {[%clk 0:01:32]}  Nxa2+ {[%clk 0:02:33]} 18. Kb1 {[%clk 0:01:31]}  Nxc3+ {[%clk 0:02:33]} 19. Rxc3 {[%clk 0:01:31]}  Rd1+ {[%clk 0:02:33]} 20. Ka2 {[%clk 0:01:32]}  Be2 {[%clk 0:02:33]} 21. Bxe2 {[%clk 0:01:30]}  Rxh1 {[%clk 0:02:34]} 22. Rxc5 {[%clk 0:01:30]}  Rxh2 {[%clk 0:02:35]} 23. Bf3 {[%clk 0:01:31]}  Rh6 {[%clk 0:02:32]} 24. Rc7 {[%clk 0:01:30]}  Rb6 {[%clk 0:02:31]} 25. e5 {[%clk 0:01:22]}  Rb5 {[%clk 0:02:29]} 26. c4 {[%clk 0:01:17]}  Ra5+ {[%clk 0:02:27]} 27. Kb3 {[%clk 0:01:14]}  Rxe5 {[%clk 0:02:27]} 28. Rxb7 {[%clk 0:01:15]}  h5 {[%clk 0:02:24]} 29. Rxa7 {[%clk 0:01:12]}  h4 {[%clk 0:02:23]} 30. Bd5 {[%clk 0:01:10]}  g5 {[%clk 0:02:21]} 31. Kc3 {[%clk 0:01:10]}  g4 {[%clk 0:02:21]} 32. b4 {[%clk 0:00:58]}  h3 {[%clk 0:02:18]} 33. gxh3 {[%clk 0:00:59]}  gxh3 {[%clk 0:02:19]} 34. Ra1 {[%clk 0:00:51]}  Kg7 {[%clk 0:02:18]} 35. b5 {[%clk 0:00:51]}  h2 {[%clk 0:02:17]} 36. Rh1 {[%clk 0:00:49]}  Rh8 {[%clk 0:02:13]} 37. b6 {[%clk 0:00:49]}  Rg5 {[%clk 0:02:08]} 38. b7 {[%clk 0:00:49]}  Rg3+ {[%clk 0:02:07]} 39. Kd4 {[%clk 0:00:46]}  Rgh3 {[%clk 0:02:00]} 40. c5 {[%clk 0:00:42]}  R8h4+ {[%clk 0:01:57]} 41. Ke5 {[%clk 0:00:40]}  Rh5+ {[%clk 0:01:58]} 42. Kd6 {[%clk 0:00:40]}  Rd3 {[%clk 0:01:58]} 43. b8=Q {[%clk 0:00:40]}  Rdxd5+ {[%clk 0:01:58]} 44. Kc6 {[%clk 0:00:10]}  Rxc5+ {[%clk 0:01:58]} 45. Kd6 {[%clk 0:00:10]}  Rhd5+ {[%clk 0:01:57]} 46. Ke7 {[%clk 0:00:10]}  Re5+ {[%clk 0:01:30]} 47. Kd6 {[%clk 0:00:10]}  Rb5 {[%clk 0:01:20]} 48. Qa8 {[%clk 0:00:05]}  Re6+ {[%clk 0:01:19]} 49. Kd7 {[%clk 0:00:05]}  Rb2 {[%clk 0:01:13]} 50. Qa1 {[%clk 0:00:05]}  Re2 {[%clk 0:01:13]} 51. Kc6 {[%clk 0:00:04]}  f6 {[%clk 0:01:11]} 52. Kd5 {[%clk 0:00:04]}  Rbc2 {[%clk 0:01:08]} 53. Kd4 {[%clk 0:00:04]}  Ra2 {[%clk 0:01:05]} 54. Qb1 {[%clk 0:00:04]}  Rg2 {[%clk 0:01:04]} 55. Qb7+ {[%clk 0:00:04]}  Kh6 {[%clk 0:01:03]} 56. Qb8 {[%clk 0:00:03]}  Rad2+ {[%clk 0:01:03]} 57. Ke3 {[%clk 0:00:03]}  Rde2+ {[%clk 0:01:03]} 58. Kf3 {[%clk 0:00:04]}  Ref2+ {[%clk 0:01:03]} 59. Ke3 {[%clk 0:00:04]}  Kg7 {[%clk 0:00:57]} 60. Qc7+ {[%clk 0:00:04]}  Kg6 {[%clk 0:00:58]} 61. Qb8 {[%clk 0:00:04]}  Re2+ {[%clk 0:00:53]} 62. Kf3 {[%clk 0:00:04]}  Ref2+ {[%clk 0:00:53]} 63. Ke3 {[%clk 0:00:05]}  f5 {[%clk 0:00:51]} 64. Qg8+ {[%clk 0:00:05]}  Kf6 {[%clk 0:00:51]} 65. Qf8+ {[%clk 0:00:05]}  Kg6 {[%clk 0:00:52]} 66. Qd6+ {[%clk 0:00:05]}  Kh5 {[%clk 0:00:50]} 67. Qf6 {[%clk 0:00:03]}  Re2+ {[%clk 0:00:50]} 68. Kd3 {[%clk 0:00:04]}  Rd2+ {[%clk 0:00:49]} 69. Kc3 {[%clk 0:00:04]}  Rc2+ {[%clk 0:00:49]} 70. Kb3 {[%clk 0:00:05]}  Rcf2 {[%clk 0:00:47]} 71. Qf7+ {[%clk 0:00:05]}  Kg4 {[%clk 0:00:47]} 72. Qg6+ {[%clk 0:00:05]}  Kf4 {[%clk 0:00:48]} 73. Qh6+ {[%clk 0:00:05]}  Kg4 {[%clk 0:00:48]} 74. Qg6+ {[%clk 0:00:05]}  Kf4 {[%clk 0:00:47]} 75. Qh6+ {[%clk 0:00:06]}  Kf3 {[%clk 0:00:45]} 76. Qh3+ {[%clk 0:00:06]}  Rg3 {[%clk 0:00:44]} 77. Qh5+ {[%clk 0:00:06]}  Kg2+ {[%clk 0:00:45]} 78. Kc4 {[%clk 0:00:03]}  Rg4+ {[%clk 0:00:43]} 79. Kd5 {[%clk 0:00:02]}  Kxh1 {[%clk 0:00:44]} 0-1


[Site "https://www.chess.com"]

[Event "Titled Tuesday Blitz September 27 Late 2022"]
[White "Gorshtein, Ido"]
[Black "Besedes, Danilo"]
[WhiteFideId "2815532"]
[BlackFideId "946796"]
[WhiteElo "2411"]
[BlackElo "2352"]
[Result "1-0"]
[Round "04"]
[TimeControl "180+1"]
[Date "2022.09.27"]
[WhiteClock "0:02:49"]
[BlackClock "0:01:42"]

1. Nf3 {[%clk 0:03:00]}  e6 {[%clk 0:03:00]} 2. g3 {[%clk 0:03:01]}  Nf6 {[%clk 0:03:00]} 3. Bg2 {[%clk 0:02:59]}  d5 {[%clk 0:02:59]} 4. O-O {[%clk 0:03:00]}  Be7 {[%clk 0:02:59]} 5. c4 {[%clk 0:03:00]}  O-O {[%clk 0:02:59]} 6. d4 {[%clk 0:03:01]}  dxc4 {[%clk 0:02:59]} 7. Ne5 {[%clk 0:03:01]}  Qd6 {[%clk 0:02:59]} 8. Na3 {[%clk 0:02:59]}  Rd8 {[%clk 0:02:54]} 9. Naxc4 {[%clk 0:02:59]}  Qa6 {[%clk 0:02:49]} 10. b3 {[%clk 0:02:56]}  c5 {[%clk 0:02:48]} 11. a4 {[%clk 0:02:56]}  cxd4 {[%clk 0:02:43]} 12. Ba3 {[%clk 0:02:51]}  Bxa3 {[%clk 0:02:39]} 13. Rxa3 {[%clk 0:02:52]}  Nc6 {[%clk 0:02:22]} 14. Nd3 {[%clk 0:02:51]}  Nd7 {[%clk 0:01:49]} 15. Qc1 {[%clk 0:02:52]}  Na5 {[%clk 0:01:42]} 16. Nb4 {[%clk 0:02:49]} 1-0


[Site "https://www.chess.com"]

[Event "Titled Tuesday Blitz September 27 Late 2022"]
[White "Harvey, Marcus R"]
[Black "Noboa Silva, Kevin"]
[WhiteFideId "400092"]
[BlackFideId "3618471"]
[WhiteElo "2485"]
[BlackElo "2172"]
[Result "1-0"]
[Round "04"]
[TimeControl "180+1"]
[Date "2022.09.28"]
[WhiteClock "0:00:11"]
[BlackClock "0:00:01"]

1. Nf3 {[%clk 0:03:00]}  Nf6 {[%clk 0:02:54]} 2. b3 {[%clk 0:02:59]}  b6 {[%clk 0:02:53]} 3. Bb2 {[%clk 0:03:00]}  Bb7 {[%clk 0:02:54]} 4. g3 {[%clk 0:03:00]}  e6 {[%clk 0:02:54]} 5. Bg2 {[%clk 0:03:00]}  c5 {[%clk 0:02:54]} 6. O-O {[%clk 0:03:01]}  Be7 {[%clk 0:02:53]} 7. c4 {[%clk 0:03:01]}  d6 {[%clk 0:02:52]} 8. d4 {[%clk 0:03:01]}  cxd4 {[%clk 0:02:53]} 9. Qxd4 {[%clk 0:03:02]}  Nbd7 {[%clk 0:02:52]} 10. Rd1 {[%clk 0:02:59]}  Qc7 {[%clk 0:02:52]} 11. Nc3 {[%clk 0:02:57]}  a6 {[%clk 0:02:52]} 12. e4 {[%clk 0:02:52]}  O-O {[%clk 0:02:51]} 13. Rac1 {[%clk 0:02:49]}  Rac8 {[%clk 0:02:50]} 14. h3 {[%clk 0:02:45]}  Rfe8 {[%clk 0:02:48]} 15. Qe3 {[%clk 0:02:41]}  Qb8 {[%clk 0:02:46]} 16. g4 {[%clk 0:02:23]}  b5 {[%clk 0:02:36]} 17. g5 {[%clk 0:02:17]}  Nh5 {[%clk 0:02:34]} 18. cxb5 {[%clk 0:02:15]}  axb5 {[%clk 0:02:32]} 19. Nxb5 {[%clk 0:02:13]}  Bxe4 {[%clk 0:02:25]} 20. Nxd6 {[%clk 0:01:31]}  Rxc1 {[%clk 0:02:24]} 21. Rxc1 {[%clk 0:01:23]}  Bxd6 {[%clk 0:02:08]} 22. Qxe4 {[%clk 0:01:22]}  Nf4 {[%clk 0:02:08]} 23. Rd1 {[%clk 0:01:16]}  Nc5 {[%clk 0:01:56]} 24. Qe3 {[%clk 0:01:02]}  Rd8 {[%clk 0:01:27]} 25. Bf1 {[%clk 0:00:36]}  Kf8 {[%clk 0:00:25]} 26. Rxd6 {[%clk 0:00:33]}  Qxd6 {[%clk 0:00:24]} 27. Be5 {[%clk 0:00:33]}  Qd5 {[%clk 0:00:06]} 28. Bxf4 {[%clk 0:00:29]}  Kg8 {[%clk 0:00:05]} 29. h4 {[%clk 0:00:18]}  Nd7 {[%clk 0:00:03]} 30. Qd3 {[%clk 0:00:15]}  Qa8 {[%clk 0:00:02]} 31. Qe2 {[%clk 0:00:11]}  Nf8 {[%clk 0:00:01]} 32. Bg2 {[%clk 0:00:11]}  Ng6 {[%clk 0:00:01]} 33. Bg3 {[%clk 0:00:11]}  Ne7 {[%clk 0:00:01]} 34. Kh2 {[%clk 0:00:11]}  Nf5 {[%clk 0:00:01]} 35. Ne5 {[%clk 0:00:11]} 1-0


[Site "https://www.chess.com"]

[Event "Titled Tuesday Blitz September 27 Late 2022"]
[White "Ibarra Jerez, Jose Carlos"]
[Black "Jeet, Jain"]
[WhiteFideId "2226332"]
[BlackFideId "5073022"]
[WhiteElo "2627"]
[BlackElo "2055"]
[Result "1-0"]
[Round "04"]
[TimeControl "180+1"]
[Date "2022.09.28"]
[WhiteClock "0:00:20"]
[BlackClock "0:00:10"]

1. Nf3 {[%clk 0:03:00]}  c5 {[%clk 0:02:53]} 2. e4 {[%clk 0:02:57]}  g6 {[%clk 0:02:51]} 3. c3 {[%clk 0:02:55]}  Bg7 {[%clk 0:02:51]} 4. d4 {[%clk 0:02:55]}  cxd4 {[%clk 0:02:52]} 5. cxd4 {[%clk 0:02:55]}  d5 {[%clk 0:02:52]} 6. e5 {[%clk 0:02:56]}  Bg4 {[%clk 0:02:52]} 7. Bb5+ {[%clk 0:02:56]}  Nc6 {[%clk 0:02:52]} 8. Bxc6+ {[%clk 0:02:53]}  bxc6 {[%clk 0:02:52]} 9. Nbd2 {[%clk 0:02:53]}  e6 {[%clk 0:02:49]} 10. O-O {[%clk 0:02:48]}  Nh6 {[%clk 0:02:48]} 11. h3 {[%clk 0:02:48]}  Bxf3 {[%clk 0:02:48]} 12. Nxf3 {[%clk 0:02:49]}  O-O {[%clk 0:02:46]} 13. b3 {[%clk 0:02:46]}  Nf5 {[%clk 0:02:43]} 14. Ba3 {[%clk 0:02:45]}  Re8 {[%clk 0:02:43]} 15. Qc2 {[%clk 0:02:40]}  Rc8 {[%clk 0:02:41]} 16. Bc5 {[%clk 0:02:39]}  a5 {[%clk 0:02:28]} 17. Rac1 {[%clk 0:02:36]}  f6 {[%clk 0:02:27]} 18. Rfe1 {[%clk 0:02:27]}  fxe5 {[%clk 0:02:13]} 19. Nxe5 {[%clk 0:02:27]}  Qg5 {[%clk 0:02:08]} 20. Qc3 {[%clk 0:02:10]}  Nh4 {[%clk 0:02:04]} 21. Qg3 {[%clk 0:02:02]}  Qxg3 {[%clk 0:01:24]} 22. fxg3 {[%clk 0:02:01]}  Nf5 {[%clk 0:01:24]} 23. g4 {[%clk 0:02:02]}  Nh6 {[%clk 0:01:20]} 24. Bb6 {[%clk 0:01:10]}  Bxe5 {[%clk 0:01:19]} 25. dxe5 {[%clk 0:01:07]}  Nf7 {[%clk 0:01:01]} 26. h4 {[%clk 0:01:05]}  Ra8 {[%clk 0:00:53]} 27. g5 {[%clk 0:00:48]}  Rec8 {[%clk 0:00:51]} 28. Bd4 {[%clk 0:00:46]}  a4 {[%clk 0:00:50]} 29. b4 {[%clk 0:00:46]}  a3 {[%clk 0:00:50]} 30. Re3 {[%clk 0:00:46]}  h6 {[%clk 0:00:47]} 31. gxh6 {[%clk 0:00:38]}  Nxh6 {[%clk 0:00:48]} 32. Bc5 {[%clk 0:00:38]}  Nf5 {[%clk 0:00:46]} 33. Rh3 {[%clk 0:00:38]}  Kg7 {[%clk 0:00:31]} 34. Rf1 {[%clk 0:00:38]}  Rh8 {[%clk 0:00:30]} 35. g4 {[%clk 0:00:34]}  Nh6 {[%clk 0:00:22]} 36. Rg3 {[%clk 0:00:31]}  Rhd8 {[%clk 0:00:17]} 37. Be7 {[%clk 0:00:31]}  Rd7 {[%clk 0:00:17]} 38. Bf6+ {[%clk 0:00:30]}  Kg8 {[%clk 0:00:17]} 39. h5 {[%clk 0:00:28]}  gxh5 {[%clk 0:00:13]} 40. gxh5+ {[%clk 0:00:29]}  Kh7 {[%clk 0:00:14]} 41. Kh2 {[%clk 0:00:28]}  Rg8 {[%clk 0:00:13]} 42. Rxg8 {[%clk 0:00:22]}  Nxg8 {[%clk 0:00:13]} 43. Bg5 {[%clk 0:00:21]}  d4 {[%clk 0:00:13]} 44. Kg3 {[%clk 0:00:19]}  d3 {[%clk 0:00:13]} 45. Bd2 {[%clk 0:00:20]}  Nh6 {[%clk 0:00:13]} 46. Rf6 {[%clk 0:00:19]}  Re7 {[%clk 0:00:11]} 47. Rxh6+ {[%clk 0:00:19]}  Kg7 {[%clk 0:00:10]} 48. Rg6+ {[%clk 0:00:19]}  Kf7 {[%clk 0:00:11]} 49. Kf3 {[%clk 0:00:19]}  Rd7 {[%clk 0:00:10]} 50. Ke4 {[%clk 0:00:19]}  Rd8 {[%clk 0:00:09]} 51. Rf6+ {[%clk 0:00:20]}  Ke7 {[%clk 0:00:09]} 52. h6 {[%clk 0:00:20]}  Rg8 {[%clk 0:00:10]} 53. h7 {[%clk 0:00:20]}  Rg4+ {[%clk 0:00:10]} 54. Rf4 {[%clk 0:00:20]} 1-0


[Site "https://www.chess.com"]

[Event "Titled Tuesday Blitz September 27 Late 2022"]
[White "Lazavik, Denis"]
[Black "Fernandez De La Vara, Arnaldo"]
[WhiteFideId "13515110"]
[BlackFideId "3518388"]
[WhiteElo "2437"]
[BlackElo "2387"]
[Result "1-0"]
[Round "04"]
[TimeControl "180+1"]
[Date "2022.09.27"]
[WhiteClock "0:00:11"]
[BlackClock "0:00:02"]

1. d4 {[%clk 0:03:00]}  c5 {[%clk 0:03:00]} 2. d5 {[%clk 0:03:00]}  Nf6 {[%clk 0:03:01]} 3. c4 {[%clk 0:03:00]}  b5 {[%clk 0:03:02]} 4. cxb5 {[%clk 0:02:58]}  a6 {[%clk 0:03:03]} 5. e3 {[%clk 0:02:58]}  g6 {[%clk 0:03:03]} 6. Nc3 {[%clk 0:02:57]}  Bg7 {[%clk 0:03:02]} 7. a4 {[%clk 0:02:57]}  O-O {[%clk 0:02:58]} 8. e4 {[%clk 0:02:58]}  d6 {[%clk 0:02:51]} 9. Bc4 {[%clk 0:02:57]}  axb5 {[%clk 0:02:47]} 10. Bxb5 {[%clk 0:02:57]}  Ba6 {[%clk 0:02:46]} 11. Bd2 {[%clk 0:02:45]}  Qb6 {[%clk 0:02:42]} 12. Nf3 {[%clk 0:02:43]}  Bxb5 {[%clk 0:02:39]} 13. axb5 {[%clk 0:02:43]}  Rxa1 {[%clk 0:02:40]} 14. Qxa1 {[%clk 0:02:43]}  Ne8 {[%clk 0:02:41]} 15. O-O {[%clk 0:02:38]}  Nc7 {[%clk 0:02:40]} 16. Qa4 {[%clk 0:02:31]}  Nd7 {[%clk 0:02:40]} 17. Bg5 {[%clk 0:02:00]}  Ra8 {[%clk 0:02:28]} 18. Qc4 {[%clk 0:01:58]}  Kf8 {[%clk 0:02:29]} 19. Rb1 {[%clk 0:01:48]}  Rb8 {[%clk 0:02:21]} 20. b4 {[%clk 0:01:43]}  Bxc3 {[%clk 0:01:30]} 21. Qxc3 {[%clk 0:01:42]}  f6 {[%clk 0:01:31]} 22. Bh6+ {[%clk 0:01:39]}  Kg8 {[%clk 0:01:25]} 23. bxc5 {[%clk 0:01:28]}  Qxc5 {[%clk 0:01:13]} 24. Qd2 {[%clk 0:01:04]}  Rxb5 {[%clk 0:01:09]} 25. Rc1 {[%clk 0:01:04]}  Qb6 {[%clk 0:01:09]} 26. Be3 {[%clk 0:01:04]}  Qb7 {[%clk 0:01:08]} 27. h4 {[%clk 0:01:02]}  Rb1 {[%clk 0:01:07]} 28. h5 {[%clk 0:00:57]}  Na6 {[%clk 0:00:53]} 29. Kh2 {[%clk 0:00:47]}  Rxc1 {[%clk 0:00:49]} 30. Qxc1 {[%clk 0:00:46]}  Nac5 {[%clk 0:00:50]} 31. hxg6 {[%clk 0:00:42]}  hxg6 {[%clk 0:00:38]} 32. Bxc5 {[%clk 0:00:41]}  Nxc5 {[%clk 0:00:29]} 33. Qh6 {[%clk 0:00:41]}  g5 {[%clk 0:00:29]} 34. Nd4 {[%clk 0:00:36]}  e5 {[%clk 0:00:20]} 35. Nf5 {[%clk 0:00:09]}  Nxe4 {[%clk 0:00:20]} 36. Qg6+ {[%clk 0:00:10]}  Kf8 {[%clk 0:00:21]} 37. f3 {[%clk 0:00:10]}  Nc3 {[%clk 0:00:04]} 38. Qxf6+ {[%clk 0:00:10]}  Kg8 {[%clk 0:00:05]} 39. Qxg5+ {[%clk 0:00:10]}  Kh8 {[%clk 0:00:04]} 40. Qf6+ {[%clk 0:00:10]}  Kh7 {[%clk 0:00:02]} 41. Ne7 {[%clk 0:00:11]}  Nxd5 {[%clk 0:00:02]} 42. Qg6+ {[%clk 0:00:11]} 1-0


[Site "https://www.chess.com"]

[Event "Titled Tuesday Blitz September 27 Late 2022"]
[White "Leiva, Gianmarco"]
[Black "Fiorito, Joaquin"]
[WhiteFideId "3804399"]
[BlackFideId "180173"]
[WhiteElo "2323"]
[BlackElo "1758"]
[Result "1-0"]
[Round "04"]
[TimeControl "180+1"]
[Date "2022.09.28"]
[WhiteClock "0:00:18"]
[BlackClock "0:00:04"]

1. e4 {[%clk 0:03:00]}  c6 {[%clk 0:02:59]} 2. d4 {[%clk 0:03:01]}  d5 {[%clk 0:03:00]} 3. exd5 {[%clk 0:03:00]}  cxd5 {[%clk 0:03:00]} 4. Bd3 {[%clk 0:03:01]}  Nc6 {[%clk 0:03:00]} 5. c3 {[%clk 0:03:02]}  Nf6 {[%clk 0:03:00]} 6. Ne2 {[%clk 0:03:02]}  g6 {[%clk 0:02:56]} 7. O-O {[%clk 0:03:02]}  Bg7 {[%clk 0:02:57]} 8. Re1 {[%clk 0:03:02]}  O-O {[%clk 0:02:57]} 9. Nd2 {[%clk 0:03:03]}  Bf5 {[%clk 0:02:57]} 10. Bxf5 {[%clk 0:03:02]}  gxf5 {[%clk 0:02:57]} 11. Nf4 {[%clk 0:03:02]}  e6 {[%clk 0:02:57]} 12. Nf1 {[%clk 0:03:00]}  b5 {[%clk 0:02:52]} 13. Nd3 {[%clk 0:02:55]}  a5 {[%clk 0:02:48]} 14. Bg5 {[%clk 0:02:50]}  Qd6 {[%clk 0:02:44]} 15. Qf3 {[%clk 0:02:45]}  Ne4 {[%clk 0:02:41]} 16. Bf4 {[%clk 0:02:44]}  Qd7 {[%clk 0:02:40]} 17. Qh3 {[%clk 0:02:42]}  Ne7 {[%clk 0:02:09]} 18. f3 {[%clk 0:02:41]}  Nf6 {[%clk 0:02:10]} 19. g4 {[%clk 0:02:34]}  fxg4 {[%clk 0:02:07]} 20. fxg4 {[%clk 0:02:34]}  Ng6 {[%clk 0:01:59]} 21. Be5 {[%clk 0:01:48]}  Ne4 {[%clk 0:01:53]} 22. Bxg7 {[%clk 0:01:46]}  Kxg7 {[%clk 0:01:54]} 23. Ng3 {[%clk 0:01:44]}  Nxg3 {[%clk 0:01:30]} 24. Qxg3 {[%clk 0:01:45]}  b4 {[%clk 0:01:24]} 25. h4 {[%clk 0:01:42]}  bxc3 {[%clk 0:01:14]} 26. bxc3 {[%clk 0:01:43]}  Rac8 {[%clk 0:00:54]} 27. Nc5 {[%clk 0:01:44]}  Qc7 {[%clk 0:00:53]} 28. Kh2 {[%clk 0:01:22]}  Nxh4 {[%clk 0:00:52]} 29. Qxc7 {[%clk 0:01:00]}  Rxc7 {[%clk 0:00:51]} 30. Kg3 {[%clk 0:00:59]}  Ng6 {[%clk 0:00:52]} 31. Rab1 {[%clk 0:00:58]}  Rfc8 {[%clk 0:00:24]} 32. Rb5 {[%clk 0:00:53]}  Ra7 {[%clk 0:00:22]} 33. Reb1 {[%clk 0:00:51]}  Nf8 {[%clk 0:00:22]} 34. Rb7 {[%clk 0:00:51]}  Rc7 {[%clk 0:00:21]} 35. Rxc7 {[%clk 0:00:52]}  Rxc7 {[%clk 0:00:21]} 36. Rb5 {[%clk 0:00:51]}  Ra7 {[%clk 0:00:21]} 37. a4 {[%clk 0:00:51]}  Kf6 {[%clk 0:00:19]} 38. Kf4 {[%clk 0:00:51]}  Ng6+ {[%clk 0:00:13]} 39. Kf3 {[%clk 0:00:48]}  Ne7 {[%clk 0:00:13]} 40. Nb3 {[%clk 0:00:46]}  Nc6 {[%clk 0:00:13]} 41. Rb6 {[%clk 0:00:46]}  Rc7 {[%clk 0:00:10]} 42. Rb5 {[%clk 0:00:43]}  Na7 {[%clk 0:00:07]} 43. Rc5 {[%clk 0:00:43]}  Rxc5 {[%clk 0:00:07]} 44. Nxc5 {[%clk 0:00:43]}  Nc6 {[%clk 0:00:07]} 45. Kf4 {[%clk 0:00:43]}  Ke7 {[%clk 0:00:06]} 46. Kg5 {[%clk 0:00:43]}  f6+ {[%clk 0:00:05]} 47. Kh6 {[%clk 0:00:43]}  e5 {[%clk 0:00:06]} 48. Nb3 {[%clk 0:00:42]}  e4 {[%clk 0:00:06]} 49. Kxh7 {[%clk 0:00:41]}  Kf7 {[%clk 0:00:07]} 50. Kh6 {[%clk 0:00:37]}  e3 {[%clk 0:00:07]} 51. Nc1 {[%clk 0:00:37]}  Nd8 {[%clk 0:00:08]} 52. g5 {[%clk 0:00:31]}  Ne6 {[%clk 0:00:07]} 53. g6+ {[%clk 0:00:30]}  Kg8 {[%clk 0:00:07]} 54. Nd3 {[%clk 0:00:30]}  e2 {[%clk 0:00:06]} 55. Ne1 {[%clk 0:00:25]}  Nf4 {[%clk 0:00:05]} 56. g7 {[%clk 0:00:25]}  Ne6 {[%clk 0:00:05]} 57. Kg6 {[%clk 0:00:26]}  f5 {[%clk 0:00:04]} 58. Kxf5 {[%clk 0:00:25]}  Nxg7+ {[%clk 0:00:04]} 59. Ke5 {[%clk 0:00:26]}  Kf7 {[%clk 0:00:04]} 60. Kxd5 {[%clk 0:00:26]}  Nf5 {[%clk 0:00:05]} 61. Kc6 {[%clk 0:00:23]}  Ke7 {[%clk 0:00:03]} 62. Kb5 {[%clk 0:00:22]}  Ne3 {[%clk 0:00:03]} 63. Kxa5 {[%clk 0:00:22]}  Kd6 {[%clk 0:00:03]} 64. Kb5 {[%clk 0:00:21]}  Kd5 {[%clk 0:00:04]} 65. a5 {[%clk 0:00:21]}  Nc4 {[%clk 0:00:04]} 66. a6 {[%clk 0:00:22]}  Nd6+ {[%clk 0:00:04]} 67. Kb6 {[%clk 0:00:21]}  Kc4 {[%clk 0:00:03]} 68. a7 {[%clk 0:00:16]}  Nc8+ {[%clk 0:00:03]} 69. Kb7 {[%clk 0:00:17]}  Nxa7 {[%clk 0:00:03]} 70. Kxa7 {[%clk 0:00:18]}  Kxc3 {[%clk 0:00:04]} 71. d5 {[%clk 0:00:18]}  Kd2 {[%clk 0:00:05]} 72. Ng2 {[%clk 0:00:18]}  Kd3 {[%clk 0:00:02]} 73. d6 {[%clk 0:00:17]}  Ke4 {[%clk 0:00:03]} 74. d7 {[%clk 0:00:17]}  Kf3 {[%clk 0:00:03]} 75. Ne1+ {[%clk 0:00:18]}  Kf2 {[%clk 0:00:04]} 76. Nc2 {[%clk 0:00:18]} 1-0


[Site "https://www.chess.com"]

[Event "Titled Tuesday Blitz September 27 Late 2022"]
[White "Machidon, Cristi"]
[Black "So, Wesley"]
[WhiteFideId "13904590"]
[BlackFideId "5202213"]
[WhiteElo "2312"]
[BlackElo "2763"]
[Result "0-1"]
[Round "04"]
[TimeControl "180+1"]
[Date "2022.09.27"]
[WhiteClock "0:00:33"]
[BlackClock "0:02:04"]

1. d4 {[%clk 0:03:00]}  d5 {[%clk 0:02:56]} 2. c4 {[%clk 0:03:01]}  e6 {[%clk 0:02:57]} 3. Nc3 {[%clk 0:03:01]}  Nf6 {[%clk 0:02:57]} 4. cxd5 {[%clk 0:03:02]}  exd5 {[%clk 0:02:57]} 5. Bg5 {[%clk 0:03:01]}  c6 {[%clk 0:02:58]} 6. e3 {[%clk 0:03:02]}  Bf5 {[%clk 0:02:58]} 7. Qf3 {[%clk 0:02:59]}  Bg6 {[%clk 0:02:59]} 8. Bxf6 {[%clk 0:02:58]}  Qxf6 {[%clk 0:02:59]} 9. Qxf6 {[%clk 0:02:58]}  gxf6 {[%clk 0:03:00]} 10. Kd2 {[%clk 0:02:52]}  Nd7 {[%clk 0:02:58]} 11. Bd3 {[%clk 0:02:53]}  Nb6 {[%clk 0:02:56]} 12. b3 {[%clk 0:02:46]}  Rg8 {[%clk 0:02:51]} 13. g3 {[%clk 0:02:46]}  a5 {[%clk 0:02:50]} 14. Nge2 {[%clk 0:02:32]}  Bd6 {[%clk 0:02:41]} 15. h4 {[%clk 0:02:26]}  Bxd3 {[%clk 0:02:34]} 16. Kxd3 {[%clk 0:02:27]}  f5 {[%clk 0:02:35]} 17. h5 {[%clk 0:01:55]}  h6 {[%clk 0:02:30]} 18. Rab1 {[%clk 0:01:48]}  Ke7 {[%clk 0:02:28]} 19. Na4 {[%clk 0:01:47]}  Nd7 {[%clk 0:02:28]} 20. Rbc1 {[%clk 0:01:43]}  Nf6 {[%clk 0:02:27]} 21. Rcf1 {[%clk 0:01:34]}  Rg5 {[%clk 0:02:25]} 22. Nf4 {[%clk 0:01:30]}  Ne4 {[%clk 0:02:18]} 23. Nc3 {[%clk 0:01:25]}  Bb4 {[%clk 0:02:14]} 24. Nce2 {[%clk 0:01:22]}  a4 {[%clk 0:02:13]} 25. f3 {[%clk 0:00:35]}  axb3 {[%clk 0:02:08]} 26. axb3 {[%clk 0:00:33]}  Ra2 {[%clk 0:02:04]} 0-1


[Site "https://www.chess.com"]